Cogmind - Beta 9.6 --- EXPLORER MODE // 2020.07.21 @ 14:17:27 Player: vifino Result: Self-destructed Performance ------------- Evolutions (1) 500 Regions Visited (3) 600 Robots Destroyed (42) 210 Value Destroyed (1117) 1117 Prototype IDs (1) 20 Alien Tech Used (0) 0 Bonus (11) 11 TOTAL SCORE: 2458 Bonus ------- High Alert Combat Kills 11 Cogmind --------- Core Integrity 283/400 Matter 300/300 Energy 100/100 System Corruption 0% Temperature Cool (624) Movement Walking (210) Ox3 Location -9/Materials Parts ------- > --- POWER (1) -------- Light Nuclear Core > --- PROPULSION (3) --- Improved Aluminum Leg > --- UTILITY (4) ------ Thermal Generator Large Storage Unit Hardened Medium Armor Plating Hardened Medium Armor Plating > --- WEAPON (2) ------- Advanced Beam Cannon > --- INVENTORY (10) --- Reinforced Ion Engine Sensor Array Targeting Computer Shock Rifle Electrolaser Advanced Beam Cannon Advanced Beam Cannon Mini Grenade Launcher Mini Grenade Launcher Datajack Peak State ------------ > --- POWER ------------ Light Nuclear Core > --- PROPULSION ------- Light Treads Improved Aluminum Leg Improved Aluminum Leg > --- UTILITY ---------- Thermal Generator Large Storage Unit Hardened Medium Armor Plating Hardened Medium Armor Plating > --- WEAPON ----------- EM Shotgun Shock Rifle > --- INVENTORY -------- Ion Engine Wheel Targeting Computer Electrolaser Mini Grenade Launcher Mini Grenade Launcher Datajack [Rating: 24] Favorites ----------- Power Light Nuclear Core Engine Ion Engine Power Core Light Nuclear Core Propulsion Light Treads Treads Light Treads Leg Improved Aluminum Leg Wheel Wheel Utility Hardened Medium Armor Plating Device Thermal Generator Storage Large Storage Unit Protection Hardened Medium Armor Plating Weapon Mini Grenade Launcher Energy Gun EM Shotgun Energy Cannon Advanced Beam Cannon Ballistic Gun Assault Rifle Launcher Mini Grenade Launcher Build | -11 -10 -10 -9 ------- Run | Scr Mat Min Mat Slots Evolved 3 | . 1 . 2 Power . | . . . . Propulsion 1 | . 1 . . Utility 2 | . . . 2 Weapon . | . . . . Parts Attached 27 | 5 4 6 12 Power 3 | 1 1 1 . Engine 1 | 1 . . . Core 2 | . 1 1 . Reactor . | . . . . Propulsion 6 | 2 2 . 2 Treads 1 | . 1 . . Leg 4 | 2 . . 2 Wheel 1 | . 1 . . Hover . | . . . . Flight . | . . . . Utility 5 | 1 1 1 2 Device 1 | . . . 1 Storage 2 | 1 1 . . Processor . | . . . . Hackware . | . . . . Protection 2 | . . 1 1 Artifact . | . . . . Weapon 13 | 1 . 4 8 Energy Gun 5 | . . 2 3 Energy Cannon 3 | . . . 3 Ballistic Gun 1 | 1 . . . Ballistic Cannon . | . . . . Launcher 4 | . . 2 2 Special Weapon . | . . . . Impact Weapon . | . . . . Slashing Weapon . | . . . . Piercing Weapon . | . . . . Special Melee Weapon . | . . . . Unidentified Prototypes 1 | . . . 1 Parts Lost 3 | . . 1 2 Power . | . . . . Propulsion 2 | . . . 2 Utility . | . . . . Weapon 1 | . . 1 . Highest Loss Streak 2 | . . 1 2 Average Slot Usage (%) 82 | . 66 84 94 Engine 1 | . 4 . . Core 9 | . 7 12 10 Treads 10 | . 12 12 7 Leg 9 | . 10 . 16 Wheel 5 | . 5 12 . Device 3 | . . . 10 Storage 11 | . 12 12 10 Protection 10 | . . 9 20 Energy Gun 5 | . . 1 13 Energy Cannon 1 | . . . 3 Ballistic Gun 4 | . 12 1 . Launcher 7 | . . 22 2 Naked Turns . | . . . . Heaviest Build 52 | 15 23 31 52 Greatest Support 26 | 20 20 20 26 Greatest Overweight (x) 4 | . 2 3 4 Average Overweight (x) 1 | . 1 2 1 Largest Inventory Capacity 10 | 8 10 10 10 Average Capacity 9 | 6 9 10 10 Most Carried 10 | 4 8 10 10 Average Carried 6 | 3 4 8 7 Final Capacity 10 | 8 10 10 10 Final Carried 10 | 4 8 8 10 Class Distribution -------------------- 100% | Hacker-Mutant Dominant Class ---------------- Hacker-Mutant | -10/Materials Hacker-Mutant | -10/Mines Hacker-Mutant | -9/Materials Resources | -11 -10 -10 -9 ----------- Run | Scr Mat Min Mat Matter Collected 899 | 186 186 112 415 Remotely . | . . . . Salvage Created 1056 | . 215 87 754 Parts 76 | . 14 2 60 Haulers Intercepted 2 | . . . 2 Recyclers Shooed 1 | . . 1 . Parts Field Recycled . | . . . . Retrieved Matter . | . . . . Parts Self-Destructed . | . . . . Prevented . | . . . . Kills | -11 -10 -10 -9 ------- Run | Scr Mat Min Mat Combat Hostiles Destroyed 26 | . 5 2 19 Guns 8 | . 5 . 3 Cannons 3 | . . . 3 AOE 15 | . . 2 13 Classes Destroyed 12 | . 3 3 6 Worker 3 | . . 1 2 Builder 2 | . . . 2 Hauler 2 | . . . 2 Recycler 2 | . . 2 . Operator 1 | . . . 1 Watcher 6 | . 2 . 4 Swarmer 3 | . 1 . 2 Grunt 15 | . 4 . 11 Brawler 2 | . . . 2 Duelist 1 | . . . 1 Sentry 3 | . . . 3 Demolisher 2 | . . 2 . Best Kill Streak 22 | . 2 5 22 Combat Bots Only 12 | . 2 2 12 Max Kills in Single Turn 3 | . 1 1 3 Gunslinging . | . . . . Exploded 3 | . . 1 3 Melee . | . . . . Uniques/NPCs Destroyed . | . . . . Combat | -11 -10 -10 -9 -------- Run | Scr Mat Min Mat Damage Taken 1229 | . 191 309 729 Core 202 | . 20 65 117 Absorbed by Shields . | . . . . Core Remaining (%) 83 | 100 . 66 . Volleys Fired 91 | . 28 9 54 Largest 2 | . 1 2 2 Hottest 136 | . 20 70 136 Shots Fired 127 | . 28 17 82 Gun 67 | . 28 3 36 Cannon 24 | . . . 24 Launcher 36 | . . 14 22 Special . | . . . . Kinetic 28 | . 28 . . Thermal 24 | . . . 24 Explosive 36 | . . 14 22 Electromagnetic 39 | . . 3 36 Robot Hit Streak 44 | . 25 18 44 Robot Miss Streak 3 | . 1 . 3 Penetration Max . | . . . . Secondary Targets . | . . . . Shots Hit Robots 108 | . 27 16 65 Core Hits 77 | . 14 17 46 Critical Hits 2 | . 1 . 1 Critical Kills . | . . . . Critical Parts Destroyed 1 | . 1 . . Melee Attacks . | . . . . Impact . | . . . . Slashing . | . . . . Piercing . | . . . . Sneak Attacks . | . . . . Combat Hostiles . | . . . . Follow-up Attacks . | . . . . Damage Inflicted 2961 | . 309 364 2288 Guns 832 | . 309 35 488 Cannons 314 | . . . 314 Explosions 1815 | . . 329 1486 Melee . | . . . . Ramming . | . . . . Kinetic 309 | . 309 . . Thermal 362 | . . . 362 Explosive 1767 | . . 329 1438 Electromagnetic 523 | . . 35 488 Impact . | . . . . Slashing . | . . . . Piercing . | . . . . Highest Corruption . | . . . . Average Corruption . | . . . . Corruption Purged . | . . . . Overload Shots . | . . . . Overflow Damage 78 | . . 17 61 Projectiles . | . . . . Explosions 78 | . . 17 61 Melee . | . . . . Knockbacks . | . . . . Impact . | . . . . Kinetic . | . . . . Secondary . | . . . . Self-Inflicted Damage 164 | . . 29 135 Shots 11 | . . 1 10 Rammed . | . . . . Targets Rammed . | . . . . Kicked . | . . . . Crushed . | . . . . Highest Temperature 712 | . 5 126 712 Average Temperature 188 | . 3 50 208 Received Heat Transfer 423 | . 156 . 267 Effects 17 | . . . 17 Shutdowns 2 | . . . 2 Energy Bleed 1 | . . . 1 Interference 3 | . . . 3 Matter Decay 1 | . . . 1 Short Circuit 3 | . . . 3 Damage (major) 6 | . . . 6 Damage (core) 1 | . . . 1 Siege Activations . | . . . . Robots Corrupted . | . . . . Combat Hostiles . | . . . . Parts Fried 5 | . . . 5 Impact Corruptions . | . . . . Robots Melted . | . . . . Combat Hostiles . | . . . . Parts Melted . | . . . . Heat Transferred 655 | . . . 655 Parts Sabotaged . | . . . . Parts Stolen . | . . . . Parts Stripped . | . . . . Power Chain Reactions 1 | . . . 1 Missiles Intercepted . | . . . . Alert | -11 -10 -10 -9 ------- Run | Scr Mat Min Mat Peak Influence 423 | . 127 81 423 Average Influence 81 | . 36 39 159 Maximum Alert Level 2 | . . . 2 Low Security (%) 88 | 100 100 100 68 Level 1 8 | . . . 22 Level 2 3 | . . . 8 Level 3 . | . . . . Level 4 . | . . . . Level 5 . | . . . . High Security . | . . . . Max Security . | . . . . Squads Dispatched 3 | . . 1 2 Investigation 1 | . . 1 . Extermination . | . . . . Reinforcement 2 | . . . 2 Assault . | . . . . Garrison . | . . . . Intercept . | . . . . Construction Impeded 1 | . . . 1 Haulers Reinforced . | . . . . Stealth | -11 -10 -10 -9 --------- Run | Scr Mat Min Mat Distress Signals 5 | . . . 5 Communications Jammed . | . . . . Distress Signals . | . . . . Times Spotted 40 | . 9 2 29 Peak Tracking Total 5 | . 2 2 5 Tactical Retreats 3 | . 2 . 1 Traps | -11 -10 -10 -9 ------- Run | Scr Mat Min Mat Traps Triggered 3 | . 3 . . Indirectly . | . . . . Trap Hack Attempts . | . . . . Triggered . | . . . . Disarmed . | . . . . Reprogrammed 6 | . 6 . . Reused 1 | . 1 . . Traps Extracted . | . . . . Installed . | . . . . Triggered 1 | . 1 . . Machines | -11 -10 -10 -9 ---------- Run | Scr Mat Min Mat Machines Disabled 6 | . . . 6 Max in Single Turn 2 | . . . 2 Machines Sabotaged . | . . . . Garrisons Compromised . | . . . . Overloaded Fab Kills . | . . . . Fab Network Shutdowns . | . . . . Hacking | -11 -10 -10 -9 --------- Run | Scr Mat Min Mat Machines Accessed 12 | . 6 2 4 Terminals 10 | . 6 1 3 Fabricators . | . . . . Repair Stations . | . . . . Recycling Units . | . . . . Scanalyzers 1 | . . . 1 Garrison Access . | . . . . Total Hacks 28 | . 12 3 13 Successful 26 | . 11 3 12 Failed 2 | . 1 . 1 Catastrophic . | . . . . Database Lockouts . | . . . . Manual 23 | . 11 3 9 Terminals 22 | . 12 2 8 Fabricators . | . . . . Repair Stations . | . . . . Recycling Units . | . . . . Scanalyzers 5 | . . . 5 Garrison Access . | . . . . Terminal Hacks 10 | . 4 2 4 Robot Analysis 2 | . 1 . 1 Open Door 1 | . . 1 . Emergency Access Points 3 | . 1 1 1 Unreport Threat 1 | . . . 1 Locate Traps 2 | . 1 . 1 Reprogram Traps 1 | . 1 . . Fabricator Hacks . | . . . . Repair Station Hacks . | . . . . Recycling Unit Hacks . | . . . . Scanalyzer 5 | . . . 5 Insert Component 3 | . . . 3 Analyze 2 | . . . 2 Garrison Access Hacks . | . . . . Unauthorized Hacks 11 | . 7 1 3 Terminals 11 | . 7 1 3 Track 1 | . 1 . . Botnet 10 | . 6 1 3 Fabricators . | . . . . Repair Stations . | . . . . Recycling Units . | . . . . Scanalyzers . | . . . . Garrison Access . | . . . . Data Cores Recovered . | . . . . Used . | . . . . Hacking Detections 6 | . 1 1 4 Full Trace Events 1 | . . . 1 Feedback Events . | . . . . Feedback Blocked . | . . . . Robot Schematics Acquired . | . . . . Robots Built . | . . . . Matter . | . . . . Time . | . . . . Total Robot Build Rating . | . . . . Part Schematics Acquired 2 | . . . 2 Parts Built . | . . . . Matter . | . . . . Time . | . . . . Total Part Build Rating . | . . . . Parts Repaired . | . . . . Time . | . . . . Parts Recycled . | . . . . Recycled Matter . | . . . . Retrieved Matter . | . . . . Retrieved Components . | . . . . Parts Scanalyzed 2 | . . . 2 Part Schematics Acquired 2 | . . . 2 Parts Damaged . | . . . . Bothacking | -11 -10 -10 -9 ------------ Run | Scr Mat Min Mat Used RIF Installer . | . . . . Robots Hacked . | . . . . Non-combat . | . . . . Combat . | . . . . Robot Hacks Applied . | . . . . Relay Couplers Released . | . . . . Robots Rewired . | . . . . Allies Hacked . | . . . . Hacks Repelled . | . . . . Allies | -11 -10 -10 -9 -------- Run | Scr Mat Min Mat Total Allies . | . . . . Largest Group . | . . . . Highest-Rated Group . | . . . . Highest-Rated Ally . | . . . . Total Orders . | . . . . Ally Attacks . | . . . . Total Damage . | . . . . Kills . | . . . . Allies Corrupted . | . . . . Allies Melted . | . . . . Intel | -11 -10 -10 -9 ------- Run | Scr Mat Min Mat Robot Analysis Total 2 | . 1 . 1 Derelict Logs Recovered . | . . . . Drone Launches . | . . . . Drone Recoveries . | . . . . Exploration | -11 -10 -10 -9 ------------- Run | Scr Mat Min Mat Turns Passed 1975 | 62 588 601 724 Spaces Moved 1219 | 45 406 453 315 Core 6 | 6 . . . Treads 55 | . 22 33 . Legs 468 | 39 135 . 294 Wheels 690 | . 249 420 21 Hover . | . . . . Flight . | . . . . Fastest Speed 50 | 50 100 100 120 Average Speed 126 | 110 118 113 157 Slowest Speed 210 | 120 180 180 210 Overloaded Moves . | . . . . Propulsion Burnouts . | . . . . Robots Hopped . | . . . . Cave-ins Triggered . | . . . . Exploration Rate (%) 46 | 5 83 54 42 Regions Visited 3 Branch Regions 1 Pre-discovered Areas 1 | . . 1 . Known Exits Taken 3 | 1 1 1 . Unknown Exits Taken . | . . . . Scrap Searched . | . . . . Spaces Dug . | . . . . Terrain Destroyed 88 | . . 32 56 Melee . | . . . . Projectile . | . . . . AOE 88 | . . 32 56 Actions | -11 -10 -10 -9 --------- Run | Scr Mat Min Mat Total 1526 | 56 486 524 460 Wait 152 | . 39 47 66 Move 1216 | 44 405 452 315 Hop . | . . . . Pick Up 29 | 7 8 6 8 Fast Attach 3 | 2 . 1 . Attach 14 | 3 2 4 5 Detach 1 | . . . 1 Swap 10 | . 2 1 7 Drop 10 | . 2 4 4 Fire 91 | . 28 9 54 Melee . | . . . . Ram . | . . . . Kick . | . . . . Crush . | . . . . Escape Stasis . | . . . . Rewire . | . . . . Trap . | . . . . Miscellaneous . | . . . . Route ------- -11/Scrapyard -10/Materials (discovered 3 exits: *Mat x2 / *Min) -10/Mines -9/Materials (discovered 1 exit: *Min) History --------- Turn | Location | Event 3 | -11/Scrapyard | Identified exit to Materials 3 | -11/Scrapyard | Discovered exit to Materials (range 16) 63 | -11/Scrapyard | Entered Materials 63 | -10/Materials | Evolved 1 slot: Propulsion x1 304 | -10/Materials | Build established: Hacker-Mutant 477 | -10/Materials | Identified exit to Materials 477 | -10/Materials | Discovered exit to Materials (range 7) 520 | -10/Materials | Discovered exit to Materials (range 15) 631 | -10/Materials | Identified exit to Mines 631 | -10/Materials | Discovered exit to Mines (range 12) 651 | -10/Materials | Entered Mines 677 | -10/Mines | Met a Derelict shopkeep closing up shop 733 | -10/Mines | Assembled infested the area 854 | -10/Mines | Learned location of Storage (-9) 1024 | -10/Mines | Discovered exit to Materials (range 5) 1252 | -10/Mines | Entered Materials 1252 | -9/Materials | Evolved 2 slots: Utility x2 1670 | -9/Materials | Identified exit to Mines 1670 | -9/Materials | Discovered exit to Mines (range 5) 1812 | -9/Materials | Destroyed 12 combat bots 1976 | -9/Materials | Self-destructed Last Messages --------------- 01939_ U-05 Engineer lays Concrete. 01944_ Critical hit. 01945_ U-05 Engineer lays Concrete. 01948_ Destroyed Flight Unit. 01949_ Lgt. Nuclear Core permanently disabled. 01949_ Overheating: Short circuit. 01953_ S-10 Pest destroyed. 01965_ Adv. Beam Cannon permanently disabled. 01965_ Overheating: Short circuit. 01966_ Overheating: Hrd. Medium Armor Plating damaged (-33). 01966_ Overheating: Thermal Generator damaged (-5). 01967_ Overheating: Core damaged (-48). 01969_ Overheating: Thermal Generator damaged (-3). 01969_ S-10 Pest destroyed. 01971_ Dropped Broken Adv. Beam Cannon. 01972_ Overheating: System interference. 01972_ Adv. Beam Cannon temporarily disabled. 01974_ Overheating: Lrg. Storage Unit damaged (-152). 01974_ Overheating: Hrd. Medium Armor Plating damaged (-35). 01974_ Overheating: Hrd. Medium Armor Plating damaged (-34). Map ----- +----------------------------------------------------+ | ????????????# ?# ????????? | | ????????????#" """ ?# %!* #?????????? | | ????????????#T " " ## %| #??????????? | | ????????????#" [ # ! ############ | | ????????????# # | | ??????????????##+ # ## ## ! % | | ????????????# | | ????????????+ ^ ###########? | | ????????????# % | | ????????????##### # % """" """?? | | ????????????????### # % %# """" "???? | | ??????????????????####### " [ """"?""??? | | ?????????????????????## # # ?? | | ?????????????????????# # " ######+###??? | | ?????????????????######## #??? | | ?????????????????# #??? | | ?????????????????# " #??? | | ?????????????????# ]= "" #??? | | ???????????????### "" #??? | | ???????????????#"" ==! " #??? | | ???????????????#T ! "" #??? | | ???????????????### ######### """ #??? | | ?????????????????# #"""" # % """ #??? | | ?????????????????# #" !" "# "" #??? | | ?????????????##### #[* "# " #??? | | ?????????????# %=@ #??? | | ???????????" ; [= > " | | ?????????????# ] % | | ?????????????# ####+## #% ###+## | | ?????????????# ??? ?######### #?? ? % | | ???????????? ??? ??????#### #?? =#? #+# | | ?????????? ??? ?????????# #?? #? ? | | ?????????? ???? ??????????# #??? #?? ? | | ??????????" #???????????????# #??? #???? ?? | | ?????????? ????????????????# #??? ??????##?? | | ???????????? ?????????????????# #?????????????? | | ???????????????????????????????# #?????????????? | | ???????????????????????????????#% #?????????????? | | ???????????????????????????????# #?????????????? | | ???????????????????????????????# #?????????????? | | ???????????????????????????????# #?????????????? | | ???????????????????????????????# #?????????????? | | ??????????????????????????????## ########??????? | | ??????????????????????????????#T #[ """ #??????? | | ????????????????????????######## # "R" #??##### | | ????????????????????????# T # %# " " #??# | | ????????????????????????# # # #??# | | ????????????????????????# """ # # #??#! | | ????????????????????????# """ + + #??# = | | ????????????????????????# """ # ########### | +----------------------------------------------------+ Best States ------------- Heat Dissipation 28 Energy Generation 14 Energy Capacity 250 Matter Stores 300 Matter Capacity 300 Sight Range 16 Terrain Scan Density 10 Armor Coverage 450 Resistance: KI 35 Resistance: TH 35 Resistance: EX 35 Resistance: EM 35 Resistance: I 35 Resistance: S 35 Resistance: P 35 Evasion (%) 40 Recoil Reduction 1 Offensive Hacking 20 Item Schematics ----------------- Mni. Grenade Launcher | -9/Materials | Scanalyzed Electrolaser | -9/Materials | Scanalyzed Robot Schematics ------------------ None Fabricated ------------ Nothing Alien Tech Used ----------------- None Achievements -------------- None Challenges ------------ None Game ------ Seed IntegrationAerolevConverter Manual? 0 Play Time 00:34:30 Cumulative 7.6 hours Start 2020.07.21 @ 13:38:39 End 2020.07.21 @ 14:17:27 Sessions 1 Manual Loads 0 Difficulty Explorer Special Mode None Game No. 10 Rogue 6 Adventurer 0 Explorer 4 Win Type - Total 0 Types 0/0/0/0/0/0/0 Lore% 13 Gallery% 15 Achievement% 13 Wizard Run 0 Options --------- ASCII 0 Keyboard 0 Movement Mouse Keybinds 0 Fullscreen 2 Font 36/Crisp Map View 76x50 Tactical HUD 1 Map Filters NONE Filters NONE Steam 1 RUN: fa838098-4753-468e-8709-17c75aeabe37